[Event "Late-Titled-Tuesday-Blitz-July-09-2024"]
[Site "Chess.com"]
[Date "2024.07.09"]
[Round "7"]
[White "Sek_Konstantin"]
[Black "BogdanDeac"]
[Result "1-0"]
[WhiteElo "2751"]
[BlackElo "2955"]
[TimeControl "180+1"]
[EndTime "15:16:46 PDT"]
[Termination "Sek_Konstantin won on time"]

1. e4 {[%clk 0:03:00.9]} 1... c5 {[%clk 0:02:58.8]} 2. Nf3 {[%clk 0:03:00.2]}
2... e6 {[%clk 0:02:56.7]} 3. g3 {[%clk 0:02:57.5]} 3... d5 {[%clk 0:02:53.4]}
4. exd5 {[%clk 0:02:56.4]} 4... exd5 {[%clk 0:02:53.2]} 5. Bg2 {[%clk
0:02:56.9]} 5... Qe7+ {[%clk 0:02:51.6]} 6. Qe2 {[%clk 0:02:49.4]} 6... Qxe2+
{[%clk 0:02:49.4]} 7. Kxe2 {[%clk 0:02:50]} 7... Nc6 {[%clk 0:02:50]} 8. Re1
{[%clk 0:02:49.1]} 8... h6 {[%clk 0:02:48.6]} 9. Kf1+ {[%clk 0:02:48.3]} 9...
Be6 {[%clk 0:02:48.7]} 10. Ne5 {[%clk 0:02:26.8]} 10... Nxe5 {[%clk 0:02:38.5]}
11. Rxe5 {[%clk 0:02:26]} 11... Ne7 {[%clk 0:02:39.1]} 12. d3 {[%clk 0:02:11.7]}
12... O-O-O {[%clk 0:02:35.9]} 13. Re1 {[%clk 0:01:56.6]} 13... Nc6 {[%clk
0:02:34.8]} 14. Be3 {[%clk 0:01:53]} 14... Be7 {[%clk 0:02:28]} 15. Na3 {[%clk
0:01:49.9]} 15... Rhe8 {[%clk 0:02:13.5]} 16. c3 {[%clk 0:01:46.5]} 16... d4
{[%clk 0:02:09.9]} 17. Bxc6 {[%clk 0:01:45.7]} 17... bxc6 {[%clk 0:02:08.3]} 18.
cxd4 {[%clk 0:01:46.2]} 18... cxd4 {[%clk 0:02:07.2]} 19. Bf4 {[%clk 0:01:46.4]}
19... Bb4 {[%clk 0:01:50.2]} 20. Rec1 {[%clk 0:01:42.5]} 20... Bh3+ {[%clk
0:01:14.9]} 21. Kg1 {[%clk 0:01:41.5]} 21... g5 {[%clk 0:01:15.2]} 22. Rxc6+
{[%clk 0:01:30.3]} 22... Kb7 {[%clk 0:01:14.1]} 23. Rxh6 {[%clk 0:01:25.3]}
23... g4 {[%clk 0:01:13.3]} 24. Nc4 {[%clk 0:00:56.6]} 24... Re2 {[%clk
0:01:10.9]} 25. Bd6 {[%clk 0:00:53.8]} 25... Bxd6 {[%clk 0:00:48.2]} 26. Nxd6+
{[%clk 0:00:53.5]} 26... Ka8 {[%clk 0:00:33.4]} 27. Rf6 {[%clk 0:00:37.9]} 27...
Rxb2 {[%clk 0:00:30.1]} 28. Rc1 {[%clk 0:00:31.1]} 28... Rxa2 {[%clk 0:00:17.8]}
29. Ne4 {[%clk 0:00:26.3]} 29... Rb8 {[%clk 0:00:09.2]} 30. Rxf7 {[%clk
0:00:20.8]} 30... Re2 {[%clk 0:00:04.8]} 31. Ng5 {[%clk 0:00:19]} 31... Rbe8
{[%clk 0:00:03.6]} 32. Nxh3 {[%clk 0:00:18.4]} 32... gxh3 {[%clk 0:00:02.9]} 33.
Rf1 {[%clk 0:00:17.8]} 33... Rd2 {[%clk 0:00:02.8]} 34. Rf3 {[%clk 0:00:16.6]}
34... a5 {[%clk 0:00:02.1]} 35. g4 {[%clk 0:00:16.7]} 35... a4 {[%clk
0:00:02.4]} 36. Rxh3 {[%clk 0:00:16.8]} 36... a3 {[%clk 0:00:02.8]} 37. Ra1
{[%clk 0:00:16.8]} 37... a2 {[%clk 0:00:03.1]} 38. Kg2 {[%clk 0:00:17]} 38...
Rb8 {[%clk 0:00:02.6]} 39. g5 {[%clk 0:00:15.7]} 39... Rb1 {[%clk 0:00:01.9]}
40. Rxa2+ {[%clk 0:00:15.7]} 40... Rxa2 {[%clk 0:00:02.5]} 41. g6 {[%clk
0:00:16]} 41... Rb8 {[%clk 0:00:01.1]} 42. Rg3 {[%clk 0:00:15.4]} 42... Ra5
{[%clk 0:00:01]} 43. g7 {[%clk 0:00:12.4]} 1-0

[Event "Late-Titled-Tuesday-Blitz-July-09-2024"]
[Site "Chess.com"]
[Date "2024.07.09"]
[Round "7"]
[White "Seppppppy"]
[Black "betta2004"]
[Result "1-0"]
[WhiteElo "2317"]
[BlackElo "2498"]
[TimeControl "180+1"]
[EndTime "15:16:49 PDT"]
[Termination "Seppppppy won by resignation"]

1. e4 {[%clk 0:02:58.4]} 1... c6 {[%clk 0:02:58.7]} 2. d4 {[%clk 0:02:58.5]}
2... d5 {[%clk 0:02:59.6]} 3. e5 {[%clk 0:02:58.9]} 3... c5 {[%clk 0:02:56.2]}
4. Nf3 {[%clk 0:02:59.1]} 4... Nc6 {[%clk 0:02:50.8]} 5. c4 {[%clk 0:02:59.2]}
5... cxd4 {[%clk 0:02:32.4]} 6. Nxd4 {[%clk 0:02:47.3]} 6... e6 {[%clk
0:02:31.6]} 7. Nc3 {[%clk 0:02:46.7]} 7... Bc5 {[%clk 0:02:23]} 8. Nxc6 {[%clk
0:02:44.5]} 8... bxc6 {[%clk 0:02:23.9]} 9. Qg4 {[%clk 0:02:44.4]} 9... Ne7
{[%clk 0:02:17.9]} 10. Qxg7 {[%clk 0:02:38.7]} 10... Rg8 {[%clk 0:02:18.2]} 11.
Qxh7 {[%clk 0:02:38.7]} 11... Qb6 {[%clk 0:02:12]} 12. Qc2 {[%clk 0:02:34.1]}
12... Bb4 {[%clk 0:02:03.2]} 13. a3 {[%clk 0:02:32.3]} 13... Bxc3+ {[%clk
0:01:59.5]} 14. bxc3 {[%clk 0:02:32.4]} 14... Ng6 {[%clk 0:01:54.3]} 15. Be3
{[%clk 0:02:08.5]} 15... Qc7 {[%clk 0:01:54]} 16. f4 {[%clk 0:02:04.9]} 16...
Nh4 {[%clk 0:01:48.2]} 17. Qh7 {[%clk 0:01:56]} 17... Rg4 {[%clk 0:01:37.2]} 18.
Qh8+ {[%clk 0:01:11.2]} 18... Kd7 {[%clk 0:01:37.5]} 19. Qf8 {[%clk 0:01:01.1]}
19... Qa5 {[%clk 0:01:17.5]} 20. Qxf7+ {[%clk 0:00:26.4]} 20... Kd8 {[%clk
0:01:18]} 21. Qf8+ {[%clk 0:00:18.8]} 21... Kd7 {[%clk 0:01:14]} 22. Qb4 {[%clk
0:00:19.4]} 22... Qxb4 {[%clk 0:01:11.8]} 23. cxb4 {[%clk 0:00:20.3]} 23...
Nxg2+ {[%clk 0:01:11.7]} 24. Bxg2 {[%clk 0:00:20.2]} 24... Rxg2 {[%clk
0:01:12.6]} 25. O-O-O {[%clk 0:00:20]} 25... Ba6 {[%clk 0:01:08.8]} 26. c5
{[%clk 0:00:19.5]} 26... Rh8 {[%clk 0:01:03.2]} 27. Rd2 {[%clk 0:00:19.2]} 27...
Be2 {[%clk 0:00:50.1]} 28. Rg1 {[%clk 0:00:17.4]} 28... Rhxh2 {[%clk 0:00:48.3]}
29. Rxg2 {[%clk 0:00:15]} 29... Rxg2 {[%clk 0:00:49.2]} 30. a4 {[%clk
0:00:14.8]} 30... a6 {[%clk 0:00:48.6]} 31. Kb2 {[%clk 0:00:13.9]} 31... Ke8
{[%clk 0:00:44.3]} 32. Kc3 {[%clk 0:00:13.9]} 32... Kf7 {[%clk 0:00:44.5]} 33.
Kd4 {[%clk 0:00:12.6]} 33... Kg6 {[%clk 0:00:43.8]} 34. b5 {[%clk 0:00:12.9]}
34... axb5 {[%clk 0:00:36.6]} 35. axb5 {[%clk 0:00:13.1]} 35... cxb5 {[%clk
0:00:19]} 36. c6 {[%clk 0:00:13.1]} 36... Kf5 {[%clk 0:00:13.7]} 37. c7 {[%clk
0:00:13]} 37... Rg8 {[%clk 0:00:14.1]} 38. Rxe2 {[%clk 0:00:13.2]} 38... Rc8
{[%clk 0:00:14.6]} 39. Rc2 {[%clk 0:00:11.6]} 39... b4 {[%clk 0:00:15]} 40. Rc6
{[%clk 0:00:11.3]} 40... b3 {[%clk 0:00:15]} 41. Kc3 {[%clk 0:00:11.8]} 41...
Ke4 {[%clk 0:00:15.5]} 42. Bb6 {[%clk 0:00:10.5]} 42... Kxf4 {[%clk 0:00:11.7]}
43. Rd6 {[%clk 0:00:10.7]} 43... Kxe5 {[%clk 0:00:05.9]} 44. Rd8 {[%clk
0:00:10.4]} 44... b2 {[%clk 0:00:05.6]} 45. Kxb2 {[%clk 0:00:10.6]} 45... Rxc7
{[%clk 0:00:05.3]} 46. Bxc7+ {[%clk 0:00:10.5]} 46... Ke4 {[%clk 0:00:06.2]} 47.
Kc3 {[%clk 0:00:10.9]} 47... e5 {[%clk 0:00:06.3]} 48. Re8 {[%clk 0:00:11.5]}
48... d4+ {[%clk 0:00:06.9]} 49. Kc4 {[%clk 0:00:12.1]} 49... Ke3 {[%clk
0:00:07.6]} 50. Rxe5+ {[%clk 0:00:12.4]} 1-0

[Event "Late-Titled-Tuesday-Blitz-July-09-2024"]
[Site "Chess.com"]
[Date "2024.07.09"]
[Round "7"]
[White "GHANDEEVAM2003"]
[Black "vellottiwizard"]
[Result "0-1"]
[WhiteElo "3173"]
[BlackElo "2766"]
[TimeControl "180+1"]
[EndTime "15:16:50 PDT"]
[Termination "vellottiwizard won by resignation"]

1. e4 {[%clk 0:03:00.9]} 1... e6 {[%clk 0:03:00.3]} 2. d3 {[%clk 0:02:58.2]}
2... d5 {[%clk 0:03:00.7]} 3. Qe2 {[%clk 0:02:58.6]} 3... Nf6 {[%clk 0:03:00.1]}
4. Nf3 {[%clk 0:02:55.3]} 4... Be7 {[%clk 0:02:59.2]} 5. g3 {[%clk 0:02:55.2]}
5... O-O {[%clk 0:02:58.8]} 6. Bg2 {[%clk 0:02:55.5]} 6... c5 {[%clk 0:02:59.5]}
7. O-O {[%clk 0:02:52.4]} 7... Nc6 {[%clk 0:02:59.9]} 8. e5 {[%clk 0:02:48]}
8... Nd7 {[%clk 0:03:00]} 9. a4 {[%clk 0:02:48.7]} 9... Rb8 {[%clk 0:02:49.1]}
10. h4 {[%clk 0:02:47.3]} 10... f6 {[%clk 0:02:26.4]} 11. exf6 {[%clk
0:02:43.2]} 11... Nxf6 {[%clk 0:02:27.3]} 12. Nc3 {[%clk 0:02:38.3]} 12... a6
{[%clk 0:02:24.9]} 13. Re1 {[%clk 0:02:27.1]} 13... Bd6 {[%clk 0:02:22]} 14. Nd1
{[%clk 0:02:11.2]} 14... e5 {[%clk 0:02:12.6]} 15. Bg5 {[%clk 0:01:57.1]} 15...
Bg4 {[%clk 0:02:01.2]} 16. Ne3 {[%clk 0:01:52.8]} 16... Be6 {[%clk 0:01:58.9]}
17. Bxf6 {[%clk 0:01:49]} 17... Qxf6 {[%clk 0:01:56.6]} 18. Ng5 {[%clk
0:01:48.6]} 18... Ne7 {[%clk 0:01:49.4]} 19. c4 {[%clk 0:01:43.6]} 19... d4
{[%clk 0:01:34.6]} 20. Ne4 {[%clk 0:01:40]} 20... Qg6 {[%clk 0:01:19.8]} 21. h5
{[%clk 0:01:27.2]} 21... Qh6 {[%clk 0:01:13.3]} 22. Nxd6 {[%clk 0:01:27.6]}
22... Bd7 {[%clk 0:01:01.3]} 23. Nxb7 {[%clk 0:01:14.2]} 23... dxe3 {[%clk
0:01:01.5]} 24. Qxe3 {[%clk 0:01:15.1]} 24... Qxe3 {[%clk 0:01:01.9]} 25. Rxe3
{[%clk 0:01:15.7]} 25... Bc6 {[%clk 0:01:02.6]} 26. Nxc5 {[%clk 0:01:08.5]}
26... Rxb2 {[%clk 0:00:59.4]} 27. Rf1 {[%clk 0:01:08.2]} 27... Bxg2 {[%clk
0:00:58.8]} 28. Kxg2 {[%clk 0:01:09.1]} 28... Nc6 {[%clk 0:00:58.7]} 29. Nxa6
{[%clk 0:00:59.6]} 29... Rf5 {[%clk 0:00:50.1]} 30. Nc7 {[%clk 0:00:53.6]} 30...
Ra2 {[%clk 0:00:46.2]} 31. Rf3 {[%clk 0:00:48.3]} 31... Rxh5 {[%clk 0:00:35.8]}
32. Ne6 {[%clk 0:00:48.4]} 32... h6 {[%clk 0:00:36.3]} 33. Rf8+ {[%clk
0:00:48.5]} 33... Kh7 {[%clk 0:00:36.3]} 34. Rf7 {[%clk 0:00:46.7]} 34... Kg6
{[%clk 0:00:34.9]} 35. Rxg7+ {[%clk 0:00:46.3]} 35... Kf6 {[%clk 0:00:35.4]} 36.
Rc7 {[%clk 0:00:47]} 36... Nb4 {[%clk 0:00:35.7]} 37. Nc5 {[%clk 0:00:43.9]}
37... Rf5 {[%clk 0:00:32.2]} 38. Ne4+ {[%clk 0:00:42.6]} 38... Kg6 {[%clk
0:00:32.1]} 39. Rb1 {[%clk 0:00:38.6]} 39... Nxd3 {[%clk 0:00:25.6]} 40. Rc6+
{[%clk 0:00:21.4]} 40... Kg7 {[%clk 0:00:18.7]} 41. Rb7+ {[%clk 0:00:20.8]}
41... Rf7 {[%clk 0:00:19.2]} 42. Rxf7+ {[%clk 0:00:21.5]} 42... Kxf7 {[%clk
0:00:20.1]} 43. Rxh6 {[%clk 0:00:14.1]} 43... Rxa4 {[%clk 0:00:20.3]} 44. Rc6
{[%clk 0:00:09.5]} 44... Ke7 {[%clk 0:00:18.6]} 45. Kf3 {[%clk 0:00:07.8]} 45...
Ra2 {[%clk 0:00:18.2]} 46. Ke3 {[%clk 0:00:07.7]} 46... Ne1 {[%clk 0:00:18.6]}
47. c5 {[%clk 0:00:07.1]} 47... Nc2+ {[%clk 0:00:19]} 48. Kf3 {[%clk 0:00:07.3]}
48... Nd4+ {[%clk 0:00:19.4]} 0-1

[Event "Late-Titled-Tuesday-Blitz-July-09-2024"]
[Site "Chess.com"]
[Date "2024.07.09"]
[Round "7"]
[White "Kyrko_Gamba"]
[Black "KVAIDAN"]
[Result "0-1"]
[WhiteElo "2517"]
[BlackElo "2383"]
[TimeControl "180+1"]
[EndTime "15:16:52 PDT"]
[Termination "KVAIDAN won by checkmate"]

1. Nf3 {[%clk 0:03:00.9]} 1... f5 {[%clk 0:02:59.7]} 2. d3 {[%clk 0:02:57.1]}
2... d6 {[%clk 0:02:59.2]} 3. e4 {[%clk 0:02:57.1]} 3... e5 {[%clk 0:02:59.6]}
4. Qe2 {[%clk 0:02:48.1]} 4... Nf6 {[%clk 0:02:58.6]} 5. exf5 {[%clk 0:02:46.7]}
5... Bxf5 {[%clk 0:02:58.4]} 6. d4 {[%clk 0:02:47.1]} 6... e4 {[%clk 0:02:54.7]}
7. Nh4 {[%clk 0:02:46.7]} 7... Bd7 {[%clk 0:02:52.9]} 8. f3 {[%clk 0:02:44]}
8... d5 {[%clk 0:02:52.9]} 9. Bg5 {[%clk 0:02:40.7]} 9... Be7 {[%clk 0:02:51.5]}
10. fxe4 {[%clk 0:02:19.5]} 10... Nxe4 {[%clk 0:02:48.6]} 11. Bxe7 {[%clk
0:02:19.7]} 11... Qxe7 {[%clk 0:02:48.8]} 12. Qh5+ {[%clk 0:02:18.6]} 12... Kd8
{[%clk 0:02:42.8]} 13. Ng6 {[%clk 0:02:05.8]} 13... Qb4+ {[%clk 0:02:33]} 14.
Nc3 {[%clk 0:01:23.7]} 14... Qxb2 {[%clk 0:02:21.6]} 15. Nxe4 {[%clk 0:01:23]}
15... Qxa1+ {[%clk 0:02:18.7]} 16. Kd2 {[%clk 0:01:22.8]} 16... Qxd4+ {[%clk
0:02:16.8]} 17. Bd3 {[%clk 0:01:22.3]} 17... dxe4 {[%clk 0:02:11]} 18. Nxh8
{[%clk 0:00:31.9]} 18... exd3 {[%clk 0:02:01.6]} 19. Nf7+ {[%clk 0:00:31.4]}
19... Kc8 {[%clk 0:01:56.7]} 20. cxd3 {[%clk 0:00:18.5]} 20... Qf4+ {[%clk
0:01:49.1]} 21. Kc2 {[%clk 0:00:15]} 21... Ba4+ {[%clk 0:01:46.1]} 22. Kc3
{[%clk 0:00:11.5]} 22... Nc6 {[%clk 0:01:36.9]} 23. Qh3+ {[%clk 0:00:08.6]}
23... Kb8 {[%clk 0:01:33.4]} 24. Rb1 {[%clk 0:00:08]} 24... Qd4+ {[%clk
0:01:24.9]} 25. Kd2 {[%clk 0:00:07.7]} 25... Qf2+ {[%clk 0:01:24.5]} 26. Kc3
{[%clk 0:00:06.7]} 26... Qxf7 {[%clk 0:01:22.6]} 27. Qe3 {[%clk 0:00:05.4]}
27... b6 {[%clk 0:01:13.1]} 28. Qe4 {[%clk 0:00:05.1]} 28... Kb7 {[%clk
0:01:11.6]} 29. Qxa4 {[%clk 0:00:04.4]} 29... Rd8 {[%clk 0:01:09.2]} 30. Qe4
{[%clk 0:00:04.4]} 30... Qf6+ {[%clk 0:01:08.9]} 31. Kd2 {[%clk 0:00:03.9]}
31... Qf2+ {[%clk 0:01:09]} 32. Kc3 {[%clk 0:00:04.1]} 32... Qd4+ {[%clk
0:01:08.1]} 33. Qxd4 {[%clk 0:00:03.2]} 33... Nxd4 {[%clk 0:01:08.5]} 34. Rf1
{[%clk 0:00:03.2]} 34... Rd7 {[%clk 0:01:07.4]} 35. Rf8 {[%clk 0:00:03]} 35...
c5 {[%clk 0:01:07.5]} 36. Rh8 {[%clk 0:00:03]} 36... h6 {[%clk 0:01:07.9]} 37.
g4 {[%clk 0:00:03]} 37... Ne2+ {[%clk 0:01:07.4]} 38. Kc4 {[%clk 0:00:01.6]}
38... Nf4 {[%clk 0:01:07.6]} 39. h4 {[%clk 0:00:01.1]} 39... Rd4+ {[%clk
0:01:07.7]} 40. Kc3 {[%clk 0:00:01.5]} 40... Rxd3+ {[%clk 0:01:08.2]} 41. Kc2
{[%clk 0:00:02.4]} 41... Rd7 {[%clk 0:01:07.6]} 42. g5 {[%clk 0:00:02.5]} 42...
hxg5 {[%clk 0:01:07.7]} 43. hxg5 {[%clk 0:00:03.4]} 43... Ne6 {[%clk 0:01:08.1]}
44. g6 {[%clk 0:00:03.9]} 44... Nf4 {[%clk 0:01:08.4]} 45. Rh4 {[%clk
0:00:03.7]} 45... Nxg6 {[%clk 0:01:08.6]} 46. Rg4 {[%clk 0:00:04.6]} 46... Ne5
{[%clk 0:01:08.6]} 47. a4 {[%clk 0:00:05.2]} 47... Nc6 {[%clk 0:01:08.3]} 48. a5
{[%clk 0:00:06.1]} 48... Nxa5 {[%clk 0:01:08.5]} 49. Rg6 {[%clk 0:00:06.1]}
49... Nc6 {[%clk 0:01:08.9]} 50. Rg4 {[%clk 0:00:06.5]} 50... Nd4+ {[%clk
0:01:09.4]} 51. Kc3 {[%clk 0:00:06]} 51... a5 {[%clk 0:01:09.8]} 52. Kc4 {[%clk
0:00:06.5]} 52... Kc6 {[%clk 0:01:10.3]} 53. Rg6+ {[%clk 0:00:05.2]} 53... Rd6
{[%clk 0:01:10.5]} 54. Rxg7 {[%clk 0:00:03.5]} 54... b5+ {[%clk 0:01:11]} 55.
Kc3 {[%clk 0:00:04.1]} 55... Ne2+ {[%clk 0:01:11.4]} 56. Kc2 {[%clk 0:00:03.9]}
56... b4 {[%clk 0:01:11.8]} 57. Kb3 {[%clk 0:00:03.6]} 57... Rd3+ {[%clk
0:01:07.6]} 58. Kc2 {[%clk 0:00:03.8]} 58... Rc3+ {[%clk 0:01:05.5]} 59. Kb2
{[%clk 0:00:04.4]} 59... Nd4 {[%clk 0:01:05.8]} 60. Rg8 {[%clk 0:00:04.4]} 60...
a4 {[%clk 0:01:05.6]} 61. Rc8+ {[%clk 0:00:04.9]} 61... Kb5 {[%clk 0:01:05.9]}
62. Rb8+ {[%clk 0:00:05.8]} 62... Kc4 {[%clk 0:01:06.3]} 63. Rg8 {[%clk
0:00:05.3]} 63... a3+ {[%clk 0:01:06.8]} 64. Ka2 {[%clk 0:00:05.8]} 64... Rc2+
{[%clk 0:01:06.6]} 65. Kb1 {[%clk 0:00:05]} 65... Rb2+ {[%clk 0:01:07]} 66. Kc1
{[%clk 0:00:05.1]} 66... Nb3+ {[%clk 0:01:07.2]} 67. Kd1 {[%clk 0:00:05.1]}
67... a2 {[%clk 0:01:07.8]} 68. Rg4+ {[%clk 0:00:04.3]} 68... Kb5 {[%clk
0:01:07.9]} 69. Rc4 {[%clk 0:00:03.5]} 69... Kxc4 {[%clk 0:01:07.4]} 70. Ke1
{[%clk 0:00:03.3]} 70... a1=Q# {[%clk 0:01:06.4]} 0-1

[Event "Late-Titled-Tuesday-Blitz-July-09-2024"]
[Site "Chess.com"]
[Date "2024.07.09"]
[Round "7"]
[White "WindWhistler11"]
[Black "marvinguevara"]
[Result "1-0"]
[WhiteElo "2483"]
[BlackElo "2096"]
[TimeControl "180+1"]
[EndTime "15:16:52 PDT"]
[Termination "WindWhistler11 won on time"]

1. Nf3 {[%clk 0:02:49.8]} 1... d5 {[%clk 0:02:56.9]} 2. g3 {[%clk 0:02:50.2]}
2... d4 {[%clk 0:02:56]} 3. c4 {[%clk 0:02:51.1]} 3... c5 {[%clk 0:02:55.1]} 4.
e3 {[%clk 0:02:51.3]} 4... Nc6 {[%clk 0:02:53.5]} 5. exd4 {[%clk 0:02:51.9]}
5... cxd4 {[%clk 0:02:54.4]} 6. Bg2 {[%clk 0:02:52.1]} 6... Nf6 {[%clk
0:02:52.9]} 7. d3 {[%clk 0:02:52.6]} 7... e5 {[%clk 0:02:49.6]} 8. O-O {[%clk
0:02:52.8]} 8... Bd6 {[%clk 0:02:47.5]} 9. Re1 {[%clk 0:02:52.7]} 9... O-O
{[%clk 0:02:46.9]} 10. a3 {[%clk 0:02:52.5]} 10... a5 {[%clk 0:02:46.1]} 11.
Nbd2 {[%clk 0:02:52.9]} 11... a4 {[%clk 0:02:45.4]} 12. Qc2 {[%clk 0:02:48.8]}
12... Bc7 {[%clk 0:02:38.2]} 13. h3 {[%clk 0:02:25.7]} 13... Re8 {[%clk
0:02:37.8]} 14. Ng5 {[%clk 0:02:23.8]} 14... h6 {[%clk 0:02:37.2]} 15. Nge4
{[%clk 0:02:20.2]} 15... Bf5 {[%clk 0:02:29.1]} 16. b4 {[%clk 0:02:17.1]} 16...
axb3 {[%clk 0:02:28.2]} 17. Nxb3 {[%clk 0:02:17]} 17... Nxe4 {[%clk 0:02:19]}
18. Rxe4 {[%clk 0:02:11.1]} 18... Bxe4 {[%clk 0:02:17.1]} 19. Bxe4 {[%clk
0:02:12]} 19... Qe7 {[%clk 0:02:05.3]} 20. a4 {[%clk 0:01:50.9]} 20... Nb4
{[%clk 0:01:51.9]} 21. Qd2 {[%clk 0:01:40.3]} 21... Nc6 {[%clk 0:01:39.7]} 22.
Ba3 {[%clk 0:01:37.1]} 22... Bd6 {[%clk 0:01:38.1]} 23. c5 {[%clk 0:01:30.1]}
23... Bc7 {[%clk 0:01:35.3]} 24. Bb2 {[%clk 0:01:29.2]} 24... Qg5 {[%clk
0:01:23.2]} 25. Qc2 {[%clk 0:01:17.7]} 25... f5 {[%clk 0:01:21.5]} 26. Bg2
{[%clk 0:01:08.9]} 26... f4 {[%clk 0:01:15.3]} 27. g4 {[%clk 0:01:07.3]} 27...
f3 {[%clk 0:00:55.6]} 28. Bxf3 {[%clk 0:01:01]} 28... Rf8 {[%clk 0:00:53.2]} 29.
Bg2 {[%clk 0:00:58.7]} 29... Rf6 {[%clk 0:00:43.2]} 30. Nd2 {[%clk 0:00:38.2]}
30... Qg6 {[%clk 0:00:22.1]} 31. Ne4 {[%clk 0:00:36.5]} 31... Rf4 {[%clk
0:00:21.6]} 32. Qb3+ {[%clk 0:00:34.4]} 32... Kh8 {[%clk 0:00:20.4]} 33. Qxb7
{[%clk 0:00:34.9]} 33... Ra7 {[%clk 0:00:17.8]} 34. Qc8+ {[%clk 0:00:31.9]}
34... Kh7 {[%clk 0:00:15.7]} 35. Nd6 {[%clk 0:00:31.9]} 35... Bxd6 {[%clk
0:00:15]} 36. cxd6 {[%clk 0:00:30.2]} 36... Qxd6 {[%clk 0:00:14.1]} 37. Qxc6
{[%clk 0:00:29.5]} 37... Qxc6 {[%clk 0:00:11.9]} 38. Bxc6 {[%clk 0:00:30.4]}
38... Rc7 {[%clk 0:00:11.7]} 39. Be4+ {[%clk 0:00:29.1]} 39... g6 {[%clk
0:00:08.9]} 40. Rc1 {[%clk 0:00:23]} 40... Rff7 {[%clk 0:00:07]} 41. Rf1 {[%clk
0:00:14.9]} 41... Rc2 {[%clk 0:00:06.5]} 42. Ba3 {[%clk 0:00:15.6]} 42... Ra2
{[%clk 0:00:06]} 43. Bd6 {[%clk 0:00:16.1]} 43... Rxa4 {[%clk 0:00:04.4]} 44.
Bxe5 {[%clk 0:00:16.8]} 44... Rd7 {[%clk 0:00:02.9]} 45. h4 {[%clk 0:00:16.7]}
45... Ra5 {[%clk 0:00:02.3]} 46. Bg3 {[%clk 0:00:16.2]} 46... h5 {[%clk
0:00:01.9]} 47. g5 {[%clk 0:00:15.6]} 47... Rb5 {[%clk 0:00:01.5]} 48. Rc1
{[%clk 0:00:16]} 48... Rb3 {[%clk 0:00:01.1]} 49. Rc6 {[%clk 0:00:16.1]} 1-0

[Event "Late-Titled-Tuesday-Blitz-July-09-2024"]
[Site "Chess.com"]
[Date "2024.07.09"]
[Round "7"]
[White "MaxLeto"]
[Black "VirtualCoach"]
[Result "1-0"]
[WhiteElo "2471"]
[BlackElo "2304"]
[TimeControl "180+1"]
[EndTime "15:16:58 PDT"]
[Termination "MaxLeto won by checkmate"]

1. g4 {[%clk 0:03:00.9]} 1... g6 {[%clk 0:02:55.1]} 2. Bg2 {[%clk 0:03:00.9]}
2... Bg7 {[%clk 0:02:55.4]} 3. d4 {[%clk 0:03:01.4]} 3... d6 {[%clk 0:02:55.1]}
4. g5 {[%clk 0:03:01]} 4... c6 {[%clk 0:02:48.9]} 5. c3 {[%clk 0:02:52.6]} 5...
h6 {[%clk 0:02:48.9]} 6. h4 {[%clk 0:02:52.5]} 6... hxg5 {[%clk 0:02:47.5]} 7.
hxg5 {[%clk 0:02:53.4]} 7... Rxh1 {[%clk 0:02:47.1]} 8. Bxh1 {[%clk 0:02:54.3]}
8... Nd7 {[%clk 0:02:44.4]} 9. Na3 {[%clk 0:02:41.1]} 9... Nf8 {[%clk
0:02:44.1]} 10. Nf3 {[%clk 0:02:28.6]} 10... Bg4 {[%clk 0:02:40.7]} 11. Bf4
{[%clk 0:02:16.9]} 11... Qc7 {[%clk 0:02:39.5]} 12. Qa4 {[%clk 0:02:05.6]} 12...
Bd7 {[%clk 0:02:34]} 13. O-O-O {[%clk 0:01:48.1]} 13... a6 {[%clk 0:02:19.1]}
14. Kb1 {[%clk 0:01:44]} 14... O-O-O {[%clk 0:02:17.9]} 15. e4 {[%clk
0:01:29.2]} 15... Bg4 {[%clk 0:02:14]} 16. Rg1 {[%clk 0:01:26.3]} 16... Bd7
{[%clk 0:02:10.8]} 17. Qb3 {[%clk 0:01:22.8]} 17... Ne6 {[%clk 0:02:02.3]} 18.
Be3 {[%clk 0:01:14.1]} 18... Be8 {[%clk 0:01:58.2]} 19. Nc4 {[%clk 0:01:04.8]}
19... Kb8 {[%clk 0:01:55]} 20. Ncd2 {[%clk 0:00:35.3]} 20... c5 {[%clk
0:01:46.2]} 21. d5 {[%clk 0:00:25.5]} 21... Nf8 {[%clk 0:01:44.3]} 22. Ne1
{[%clk 0:00:21.7]} 22... Nd7 {[%clk 0:01:43.9]} 23. f4 {[%clk 0:00:20.6]} 23...
Nb6 {[%clk 0:01:40.8]} 24. c4 {[%clk 0:00:18.6]} 24... Ba4 {[%clk 0:01:27.8]}
25. Qa3 {[%clk 0:00:16]} 25... Bd7 {[%clk 0:01:28.2]} 26. Nd3 {[%clk 0:00:13.2]}
26... Na4 {[%clk 0:01:25.3]} 27. Bf3 {[%clk 0:00:09.6]} 27... Qb6 {[%clk
0:01:24.3]} 28. Kc1 {[%clk 0:00:07.7]} 28... Qa5 {[%clk 0:01:19.9]} 29. Bd1
{[%clk 0:00:07]} 29... b5 {[%clk 0:01:09.1]} 30. Bxa4 {[%clk 0:00:04.9]} 30...
bxa4 {[%clk 0:01:08.8]} 31. Nb1 {[%clk 0:00:03.5]} 31... Ka8 {[%clk 0:01:05.7]}
32. Bd2 {[%clk 0:00:04]} 32... Qb6 {[%clk 0:01:04.7]} 33. Bc3 {[%clk 0:00:04.6]}
33... Bxc3 {[%clk 0:01:03.6]} 34. Nxc3 {[%clk 0:00:05.5]} 34... Qa5 {[%clk
0:00:57.7]} 35. Rh1 {[%clk 0:00:05]} 35... Rb8 {[%clk 0:00:52.2]} 36. Rh7 {[%clk
0:00:05.5]} 36... f6 {[%clk 0:00:29.6]} 37. gxf6 {[%clk 0:00:02.5]} 37... Nxf6
{[%clk 0:00:29.7]} 38. Rxe7 {[%clk 0:00:03.2]} 38... Bc8 {[%clk 0:00:29.3]} 39.
e5 {[%clk 0:00:02.7]} 39... Ng4 {[%clk 0:00:18.2]} 40. exd6 {[%clk 0:00:01.5]}
40... Qd8 {[%clk 0:00:18.9]} 41. Qxc5 {[%clk 0:00:01.2]} 41... Rb6 {[%clk
0:00:18.1]} 42. Qc7 {[%clk 0:00:01.2]} 42... Qxc7 {[%clk 0:00:16.7]} 43. dxc7
{[%clk 0:00:01.8]} 43... Nf2 {[%clk 0:00:15.6]} 44. Nxf2 {[%clk 0:00:01.4]}
44... Kb7 {[%clk 0:00:15.4]} 45. c5 {[%clk 0:00:02]} 45... Rb5 {[%clk
0:00:15.7]} 46. d6 {[%clk 0:00:02.6]} 46... Rxc5 {[%clk 0:00:15.9]} 47. Re8
{[%clk 0:00:03.2]} 47... Bd7 {[%clk 0:00:16.1]} 48. Rd8 {[%clk 0:00:03.7]} 48...
Kc6 {[%clk 0:00:17]} 49. Nd3 {[%clk 0:00:03.1]} 49... Rd5 {[%clk 0:00:16.5]} 50.
Ne5+ {[%clk 0:00:03.4]} 50... Kxd6 {[%clk 0:00:16]} 51. Rxd7+ {[%clk 0:00:04.1]}
51... Kc5 {[%clk 0:00:15.2]} 52. Rxd5+ {[%clk 0:00:05]} 52... Kb4 {[%clk
0:00:14.9]} 53. c8=Q {[%clk 0:00:05.9]} 53... a3 {[%clk 0:00:15]} 54. Qc4#
{[%clk 0:00:06.5]} 1-0